bitfinex/quotes_ETHUSD_20250529
["timestamp","ask_amount","ask_price","bid_price","bid_amount"]
[1748494761396,9.734066,2726.1,2726.0,15.10721673]
[1748494761697,9.734066,2726.1,2726.0,13.06837857]
[1748494762029,9.734066,2726.1,2726.0,3.66837857]
[1748494762231,9.734066,2726.1,2726.0,11.66837857]
[1748494769640,9.734066,2726.1,2726.0,2.98289291]
[1748494769846,9.734066,2726.1,2726.0,3.66837857]
[1748494770443,9.734066,2726.1,2726.0,4.40206771]
[1748494771659,9.734066,2726.1,2726.0,12.40206771]
[1748494772438,9.734066,2726.1,2726.0,11.66837857]
[1748494788226,9.734066,2726.1,2726.0,13.06837857]
[1748494792955,9.734066,2726.1,2726.0,11.66837857]
[1748494797055,9.734066,2726.1,2726.0,12.91577857]
[1748494797458,9.734066,2726.1,2726.0,14.31577857]
[1748494797710,9.734066,2726.1,2726.0,16.56570703]
[1748494798979,9.734066,2726.1,2726.0,17.11570703]
[1748494799603,9.734066,2726.1,2726.0,20.85365203]
[1748494799959,9.734066,2726.1,2726.0,22.64553738]
[1748494800557,3.66532532,2728.3,2726.0,22.64553738]
[1748494800558,1.2902,2727.5,2727.3,3.66654894]
[1748494800869,1.2902,2727.5,2727.3,3.66655239]
[1748494801196,1.2902,2727.5,2727.4,3.66649556]
[1748494801534,4.50549753,2727.6,2727.3,3.66657444]
[1748494801730,4.50549753,2727.6,2727.0,8.0]
[1748494802033,5.44223801,2727.6,2727.0,11.66691286]
[1748494802349,5.44223801,2727.6,2727.1,3.66687336]
[1748494802350,0.93674048,2727.6,2727.1,3.66687336]
[1748494802696,4.60298009,2727.6,2727.0,11.66697985]
[1748494803011,1.2338,2727.5,2727.0,8.0]
[1748494803228,1.2338,2727.5,2727.0,11.6669212]
[1748494803430,10.47961455,2727.5,2727.0,8.0]
[1748494803733,10.44286464,2727.5,2727.0,8.0]
[1748494804049,10.44288286,2727.5,2726.9,11.66713417]
[1748494804217,3.70332014,2727.4,2726.8,13.13224116]
[1748494804395,10.44290953,2727.5,2726.9,3.66716084]
[1748494804958,1.2338,2727.5,2726.8,11.66720372]
[1748494805259,5.7398,2727.5,2727.3,3.66662043]
[1748494805598,5.7398,2727.5,2727.2,3.66670715]
[1748494806122,5.7398,2727.5,2726.6,3.66748738]
[1748494806123,1.2282,2727.2,2726.2,10.0]
[1748494806325,5.7322,2727.2,2726.3,8.0]
[1748494806494,5.7322,2727.2,2727.1,3.6668989]
[1748494806695,1.2282,2727.2,2727.1,3.6668989]
[1748494806897,1.2282,2727.2,2727.0,3.66699399]
[1748494807762,1.2282,2727.2,2726.5,12.502]
[1748494807938,1.2282,2727.2,2726.9,3.6670474]
[1748494808148,1.2282,2727.2,2726.9,8.0]
[1748494808429,1.2282,2727.2,2726.9,3.66714236]
[1748494809447,1.2282,2727.2,2726.9,11.66714236]
[1748494809948,1.2625,2727.5,2726.9,8.0]
[1748494810127,4.5,2727.4,2727.0,3.66695097]
[1748494811014,4.5,2727.4,2726.9,11.66715368]
[1748494811438,4.5,2727.4,2726.9,8.0]
[1748494811626,4.5,2727.4,2727.2,3.66664902]
[1748494812337,1.2625,2727.5,2727.0,3.66691169]
[1748494812523,4.497,2727.4,2727.3,3.66663]
[1748494812727,1.2625,2727.5,2727.3,3.66663]
[1748494813043,5.7585,2727.5,2727.3,3.66663]
[1748494813244,5.7585,2727.5,2727.2,3.66672901]
[1748494813912,1.2625,2727.5,2727.0,1.16669117]
[1748494814246,1.1765,2727.7,2727.4,3.66648545]
[1748494815439,1.1765,2727.7,2727.3,3.66657548]
[1748494815955,1.1765,2727.7,2727.1,0.91666912]
[1748494816130,1.1765,2727.7,2727.2,3.6667064]
[1748494816452,1.1765,2727.7,2727.1,3.66681478]
[1748494817124,1.1765,2727.7,2727.2,3.66664731]
[1748494817329,1.1765,2727.7,2727.3,3.66653448]
[1748494817533,1.1765,2727.7,2727.4,3.66645136]
[1748494818167,1.1765,2727.7,2727.4,3.66644705]
[1748494818313,1.1765,2727.7,2727.6,3.66622671]
[1748494818718,1.1765,2727.7,2726.9,3.66716784]
[1748494818719,1.1765,2727.7,2727.4,3.6663644]
[1748494818936,1.1765,2727.7,2727.5,3.66635568]
[1748494820733,1.1765,2727.7,2727.4,3.66643653]
[1748494820929,1.1765,2727.7,2727.4,3.66637795]
[1748494821268,8.15372373,2728.0,2727.4,3.66637795]
[1748494821269,1.1895,2727.9,2727.5,3.66635049]
[1748494822717,1.1895,2727.9,2727.4,0.3666378]
[1748494822924,1.1895,2727.9,2727.6,3.66612058]
[1748494823471,1.1957,2728.1,2727.4,1.5731378]
[1748494823785,4.86132605,2728.1,2727.5,3.66628281]
[1748494824057,1.1957,2728.1,2727.5,0.89059467]
[1748494824280,1.1957,2728.1,2725.4,2.95108319]
[1748494824281,1.7977,2727.9,2725.9,5.45885432]
[1748494824571,3.6668989,2727.1,2725.7,8.0]
[1748494824770,3.6668989,2727.1,2725.4,5.925]
[1748494824771,1.2477,2726.7,2725.8,1.2764]
[1748494824977,1.2477,2726.7,2725.9,3.66847273]
[1748494825176,4.91515381,2726.7,2726.1,3.66820148]
[1748494825320,4.91515381,2726.7,2725.9,3.66847273]
[1748494825321,3.66759049,2726.6,2726.0,3.6683228]
[1748494825521,3.66759049,2726.6,2725.6,4.482]
[1748494825522,3.66774164,2726.5,2725.9,3.6685017]
[1748494825723,3.66763311,2726.6,2726.0,3.66830281]
[1748494826121,4.91518965,2726.7,2726.0,3.66830281]
[1748494826322,1.2477,2726.7,2726.1,3.6681884]
[1748494826739,4.91521034,2726.7,2726.0,3.66828899]
[1748494826944,3.66760484,2726.6,2726.0,3.66828899]
[1748494827160,3.66760484,2726.6,2725.9,8.7337284]
[1748494827161,1.3013,2726.5,2725.9,8.7337284]
[1748494827330,1.3013,2726.5,2725.6,9.2199]
[1748494827523,1.3013,2726.5,2725.9,3.66843676]
[1748494827936,1.3013,2726.5,2725.6,1.2199]
[1748494828121,1.3013,2726.5,2725.8,8.0]
[1748494828662,1.3013,2726.5,2726.2,3.66803372]
[1748494830161,1.3013,2726.5,2726.0,3.66827492]
[1748494830344,1.3013,2726.5,2725.7,1.43309039]
[1748494830345,1.3013,2726.5,2725.9,3.66848924]
[1748494830547,1.3013,2726.5,2725.7,9.43309039]
[1748494830762,3.66808131,2726.3,2725.7,5.10182048]
[1748494831067,5.54715504,2726.5,2725.7,1.43309039]
[1748494831068,1.1877,2726.1,2725.7,1.43309039]
[1748494831269,1.1877,2726.1,2725.5,11.66902742]
[1748494831270,1.1877,2726.1,2725.6,3.66883041]
[1748494831475,1.1877,2726.1,2725.7,3.66874541]
[1748494831642,1.1877,2726.1,2725.9,8.0]
[1748494831838,1.1877,2726.1,2725.9,3.66846398]
[1748494832552,1.1877,2726.1,2725.6,3.66891236]
[1748494832869,1.1877,2726.1,2725.6,5.3266502]
[1748494833661,1.1877,2726.1,2725.8,8.0]
[1748494833965,1.1877,2726.1,2725.7,11.66877547]
[1748494834468,4.85598358,2726.1,2725.3,8.0]
[1748494834763,1.2937,2725.9,2725.5,8.0]
[1748494834966,1.2937,2725.9,2725.5,3.6690447]
[1748494835551,1.2937,2725.9,2725.6,3.6688411]
[1748494835762,1.2937,2725.9,2725.7,3.66877852]
[1748494835943,1.2937,2725.9,2725.8,3.66864773]
[1748494836138,3.66791266,2726.4,2725.8,3.66864773]
[1748494836364,5.7657,2726.3,2725.8,3.66864773]
[1748494836559,9.43372512,2726.3,2725.7,3.66874521]
[1748494836747,5.7657,2726.3,2725.8,3.6686068]
[1748494837660,1.2937,2726.3,2725.9,3.66848302]
[1748494838235,1.2937,2726.3,2725.5,4.97579241]
[1748494838435,1.2653,2726.7,2725.9,4.90717049]
[1748494838638,1.2653,2726.7,2726.5,3.66763408]
[1748494838878,5.7343,2727.2,2726.7,3.66734905]
[1748494839140,1.2653,2727.2,2726.2,3.66810945]
[1748494839339,3.66718139,2726.9,2726.4,3.66775484]
[1748494839556,1.2653,2726.8,2726.3,0.36681095]
[1748494839881,1.2653,2726.8,2726.5,3.66769212]
[1748494840238,1.2653,2726.8,2726.5,3.66770054]
[1748494840441,1.2653,2727.1,2726.8,3.66728743]
[1748494840636,1.2653,2727.1,2726.9,3.66707041]
[1748494840837,1.2653,2727.4,2726.6,3.66753406]
[1748494841076,1.2653,2727.4,2726.9,3.66706481]
[1748494841385,1.2653,2727.4,2727.1,3.66681306]
[1748494841586,3.66585258,2727.9,2727.1,3.66681306]
[1748494841587,1.2653,2727.9,2727.4,3.66649308]
[1748494841888,1.2653,2727.9,2727.1,0.73338779]
[1748494842587,1.2653,2727.9,2727.3,3.66654365]
[1748494842901,1.2653,2727.9,2727.2,3.66667398]
[1748494843101,4.93118545,2727.9,2727.3,3.66658621]
[1748494843473,4.93118545,2727.9,2727.1,3.66689012]
[1748494843474,1.2653,2727.9,2727.4,3.6664562]
[1748494843801,4.93124116,2727.9,2727.2,3.66668431]
[1748494844126,3.66612775,2727.7,2727.3,0.36666843]
[1748494844265,4.92284006,2727.6,2726.9,3.6671289]
[1748494844465,1.2565,2727.6,2726.9,3.6671289]
[1748494844665,1.2565,2727.6,2727.0,3.66702551]
[1748494844901,4.92277316,2727.6,2727.0,4.40038906]
[1748494845207,1.2565,2727.6,2727.0,0.73343269]
[1748494845498,1.2565,2727.6,2727.2,3.66664878]
[1748494845798,1.2565,2727.6,2727.2,3.59457329]
[1748494846200,3.66653918,2727.4,2726.8,3.6672264]
[1748494846490,1.199,2727.3,2726.3,3.66792816]
[1748494846680,1.199,2727.3,2726.1,1.2971]
[1748494846681,1.56565392,2727.3,2726.4,3.66778946]
[1748494846876,1.199,2727.3,2726.8,3.66729924]
[1748494847401,4.86565807,2727.3,2726.7,3.66737629]
[1748494847573,1.199,2727.3,2726.9,3.66708659]
[1748494848565,4.819,2727.6,2727.1,3.66684628]
[1748494848566,1.6264,2727.6,2727.1,3.66684628]
[1748494848764,1.6264,2727.6,2727.3,3.66661749]
[1748494848965,1.6264,2727.6,2727.2,3.66671878]
[1748494849202,5.29263692,2727.6,2726.9,3.66715432]
[1748494849405,5.29263692,2727.6,2727.0,4.03368407]
[1748494849619,1.6264,2727.6,2727.1,3.66687014]
[1748494849966,1.2664,2727.6,2727.1,3.66687014]
[1748494850184,1.2664,2727.6,2727.1,3.66682476]
[1748494850432,8.12284869,2727.9,2727.3,3.66663]
[1748494850433,9.32122362,2727.9,2727.3,3.66663]
[1748494851090,3.6659865,2727.8,2727.3,3.66663]
[1748494851286,3.6659865,2727.8,2727.2,0.77005331]
[1748494851492,3.66609231,2727.7,2727.0,3.66693248]
[1748494851696,3.70273641,2727.8,2727.0,3.66693248]
[1748494851697,3.66630311,2727.6,2727.0,3.66693248]
[1748494852498,1.1937,2727.5,2727.0,3.66693248]
[1748494852811,4.86006961,2727.5,2727.0,8.0]
[1748494853580,4.86006961,2727.5,2727.0,3.66703182]
[1748494853998,0.8526169,2727.5,2726.1,10.0]
[1748494854194,0.8526169,2727.5,2725.4,7.79]
[1748494854195,1.2651,2727.2,2725.8,1.2123]
[1748494854529,1.2651,2726.6,2726.0,3.66837857]
[1748494854679,1.2651,2726.6,2726.2,3.66807642]
[1748494854877,1.2651,2726.6,2725.8,1.2123]
[1748494854878,1.2651,2726.6,2726.4,3.66775431]
[1748494855085,1.2651,2726.6,2725.9,0.03667782]
[1748494855381,3.86444779,2729.0,2726.4,3.66783168]
[1748494855382,4.88071938,2727.0,2726.4,3.66783168]
[1748494855633,4.88071938,2727.0,2726.0,0.30415916]
[1748494855634,1.2136,2727.0,2726.5,3.66763619]
[1748494856127,4.88065894,2727.0,2726.4,3.66781175]
[1748494857020,3.66718719,2726.9,2726.2,8.0]
[1748494857199,3.66738153,2726.8,2726.2,8.0]
[1748494857526,3.66745884,2726.7,2726.2,8.0]
[1748494859118,3.66735822,2726.8,2726.1,3.66813605]
[1748494859322,4.15528131,2726.9,2725.8,1.2123]
[1748494859523,4.447,2726.8,2726.2,3.66801739]
[1748494859729,8.11434652,2726.8,2726.2,3.66801739]
[1748494860125,8.11434652,2726.8,2726.0,3.66828289]
[1748494860126,3.66744384,2726.7,2726.1,11.66819563]
[1748494860325,3.66779461,2726.5,2726.0,8.0]
[1748494860684,3.66759241,2726.6,2725.8,11.66855629]
[1748494861017,3.66759241,2726.6,2725.5,5.7246]
[1748494861018,3.66784037,2726.4,2725.6,13.08983334]
[1748494861221,8.11299243,2726.3,2725.6,9.421]
[1748494861524,8.11299243,2726.3,2725.7,3.66867572]
[1748494861881,4.445,2726.3,2725.6,1.421]
[1748494862085,8.11297835,2726.3,2725.6,1.421]
[1748494862348,1.1859,2726.0,2725.6,5.08991174]
[1748494863084,3.66816216,2726.2,2725.6,5.08991174]
[1748494863288,9.29893131,2726.3,2725.7,3.66876604]
[1748494863837,1.1859,2726.3,2726.0,3.66830161]
[1748494864393,6.56224924,2726.6,2726.1,3.66824017]
[1748494864592,6.56224924,2726.6,2725.8,1.2958]
[1748494864593,6.56124924,2726.6,2726.2,3.66810649]
[1748494864794,6.56124924,2726.6,2726.3,3.66787952]
[1748494864795,1.1835,2726.6,2726.3,3.66787952]
[1748494865100,1.1835,2726.6,2726.3,3.66795405]
[1748494865704,1.1835,2726.6,2726.2,3.66805916]
[1748494865888,1.1835,2726.6,2726.1,3.66815378]
[1748494866322,1.1835,2726.6,2725.8,1.2958]
[1748494866523,3.70453104,2726.5,2726.0,8.0]
[1748494866703,3.70453104,2726.5,2725.7,9.421]
[1748494866891,3.6679813,2726.3,2725.8,3.66863528]
[1748494867091,1.2425,2726.2,2725.7,13.08972276]
[1748494867634,1.2425,2726.2,2725.8,3.66862952]
[1748494868133,4.91061005,2726.2,2725.7,9.421]
[1748494868435,3.66824787,2726.1,2725.7,9.421]
[1748494868727,3.66824787,2726.1,2725.7,1.421]
[1748494868933,3.66824787,2726.1,2725.4,4.86198553]
[1748494868934,0.49107479,2726.1,2725.6,3.6689121]
[1748494869310,3.66847523,2726.0,2725.5,8.0]
[1748494869718,3.66847523,2726.0,2725.5,3.66904354]
[1748494869952,8.10647523,2726.0,2725.5,8.0]
[1748494870148,3.66852977,2725.9,2725.5,8.0]
[1748494870350,1.2604,2725.8,2725.5,8.0]
[1748494870546,1.2604,2725.8,2725.1,3.66947219]
[1748494870748,3.66887268,2725.7,2725.1,3.66947219]
[1748494871042,4.92908006,2725.8,2725.3,8.0]
[1748494871543,1.2604,2725.8,2725.5,3.66897634]
[1748494871853,1.2447,2726.1,2725.9,3.66849941]
[1748494872410,1.2447,2726.1,2725.2,1.79261378]
[1748494872411,1.2447,2726.1,2725.8,3.66861955]
[1748494873152,1.23147,2726.1,2725.5,1.1785]
[1748494873357,0.36,2726.3,2726.0,3.66834074]
[1748494873520,4.434,2726.4,2726.0,3.66834074]
[1748494873709,4.434,2726.4,2726.0,8.0]
[1748494874447,4.434,2726.4,2725.9,8.0]
[1748494874741,4.433,2726.4,2725.9,3.66847038]
[1748494874945,4.433,2726.4,2725.9,11.66847038]
[1748494875245,3.6674513,2726.7,2726.2,3.66810128]
[1748494875407,3.6674513,2726.7,2726.1,3.66818842]
[1748494875408,4.432,2726.6,2726.1,3.66818842]
[1748494875603,4.432,2726.6,2725.9,1.53371103]
[1748494875912,3.66779083,2726.5,2725.9,11.66845994]
[1748494876139,1.1948,2726.4,2725.9,8.0]
[1748494876342,5.6268,2726.6,2726.2,3.66809784]
[1748494876744,9.29441446,2726.6,2726.0,3.66837857]
[1748494877453,9.29441446,2726.6,2726.1,3.66824068]
[1748494877859,5.6268,2726.6,2726.1,3.66824068]
[1748494878060,5.6248,2726.6,2726.1,3.66824068]
[1748494878259,5.6248,2726.6,2726.0,1.66096669]
[1748494878423,3.66793993,2726.4,2726.0,1.66096669]
[1748494878618,3.66791902,2726.4,2725.9,8.0]
[1748494879355,5.6248,2726.6,2725.9,8.0]
[1748494879556,9.29240943,2726.6,2726.0,3.66832661]
[1748494880045,4.86240943,2726.6,2726.0,3.66832661]
[1748494880355,4.427,2726.5,2726.1,3.66823738]
[1748494880558,1.1948,2726.6,2726.2,3.66809875]
[1748494880854,3.6674043,2726.8,2726.4,8.0]
[1748494880855,1.2092,2726.8,2726.4,8.0]
[1748494881042,5.6362,2726.8,2726.4,8.0]
[1748494881945,9.30351192,2726.8,2726.2,11.66804249]
[1748494882149,4.87651192,2726.8,2726.2,8.0]
[1748494882456,5.6342,2726.8,2726.3,3.66793321]
[1748494882617,5.6342,2726.8,2726.4,8.0]
[1748494882818,1.2092,2726.8,2726.4,8.0]
[1748494883023,5.6342,2726.8,2726.4,8.0]
[1748494883432,1.2092,2726.8,2726.4,8.0]
[1748494883634,1.293,2727.2,2726.5,3.66761674]
[1748494883927,1.293,2727.2,2726.7,1.209]
[1748494884169,1.293,2727.2,2726.9,11.6670907]
[1748494885046,1.293,2727.2,2726.9,8.0]
[1748494885273,4.95984557,2727.2,2726.6,3.66750982]
[1748494885586,4.95984557,2727.2,2726.7,8.0]
[1748494885800,4.95984557,2727.2,2725.8,1.401]
[1748494885801,1.293,2727.0,2725.8,1.401]
[1748494886077,0.93828456,2727.1,2725.8,5.06958711]
[1748494886078,1.293,2726.5,2725.8,5.06958711]
[1748494886377,3.6679279,2726.4,2725.8,5.069549]
[1748494886580,3.6679279,2726.4,2725.9,8.0]
[1748494886776,3.66802679,2726.3,2725.8,1.401]
[1748494888142,3.66797491,2726.3,2725.7,11.6687055]
[1748494888343,1.30495372,2726.4,2725.7,11.6687055]
[1748494888344,1.232,2726.1,2725.7,11.6687055]
[1748494889789,5.65,2726.1,2725.7,8.0]
[1748494891256,5.65,2726.1,2725.7,3.66876246]
[1748494891789,5.65,2726.1,2725.6,8.0]
[1748494891982,5.65,2726.1,2725.6,11.66885175]
[1748494892498,5.65,2726.1,2725.7,3.66876385]
[1748494892690,5.65,2726.1,2725.3,1.292]
[1748494892840,5.65,2726.1,2725.7,8.0]
[1748494893040,5.65,2726.1,2725.7,3.66876036]
[1748494893688,5.65,2726.1,2725.3,1.292]
[1748494893689,4.418,2726.1,2725.3,3.66925153]
[1748494893892,4.91523547,2725.9,2725.3,3.6692458]
[1748494894040,1.2467,2725.9,2725.3,11.66923651]
[1748494894238,4.91533048,2725.9,2725.4,8.0]
[1748494894444,0.49153305,2725.8,2725.2,3.66942463]
[1748494894643,4.413,2725.7,2725.2,8.0]
[1748494894893,4.413,2725.7,2725.4,3.66917311]
[1748494895057,4.413,2725.7,2725.3,3.6692635]
[1748494895244,4.413,2725.7,2725.2,8.0]
[1748494895449,4.413,2725.7,2725.3,3.66924015]
[1748494895694,5.39497746,2725.7,2725.3,3.66924015]
[1748494896121,9.0637795,2725.7,2725.2,8.0]
[1748494896325,1.2275,2725.6,2725.3,8.0]
[1748494896539,1.2275,2725.6,2725.3,11.66926689]
[1748494896687,1.2275,2725.6,2725.2,11.66944429]
[1748494897197,1.2275,2725.6,2725.2,8.0]
[1748494897996,1.2275,2725.6,2725.2,3.66942596]
[1748494898197,2.30578063,2725.6,2725.2,3.66942596]
[1748494899842,5.97473439,2725.6,2725.0,3.66966552]
[1748494899996,5.97473439,2725.6,2725.1,8.0]
[1748494900335,5.97473439,2725.6,2725.1,3.66957891]
[1748494900558,3.66906688,2725.5,2724.6,2.5649]
[1748494900738,3.66906688,2725.5,2724.7,8.0]
[1748494900739,4.70784032,2725.5,2724.7,8.0]
[1748494901236,1.03877344,2725.5,2724.7,3.67012372]
[1748494901440,1.03877344,2725.5,2724.6,2.5649]
[1748494901441,1.2027,2725.4,2724.8,11.66996176]
[1748494901642,1.2027,2725.6,2724.7,8.0]
[1748494901857,0.36,2726.2,2724.6,2.5649]
[1748494901858,1.2027,2725.8,2725.6,8.0]
[1748494902039,0.53951264,2727.2,2724.9,6.76437322]
[1748494902040,5.6087,2726.1,2725.7,3.66870693]
[1748494902210,4.406,2726.0,2725.7,3.66870693]
[1748494902611,4.406,2726.0,2725.4,8.0]
[1748494902826,4.406,2726.0,2725.6,3.66883662]
[1748494903026,1.2027,2726.1,2725.8,3.66855718]
[1748494903227,4.405,2726.0,2725.9,3.66851315]
[1748494903435,1.2027,2726.1,2725.9,3.66851315]
[1748494903722,5.6077,2726.3,2726.0,8.0]
[1748494903936,5.6077,2726.3,2726.0,11.66832112]
[1748494904252,3.66764683,2726.6,2726.0,11.66837084]
[1748494904253,1.2027,2726.6,2726.0,11.66837084]
[1748494904454,1.2027,2727.0,2726.1,1.33857938]
[1748494904651,1.2027,2727.0,2726.7,3.66732352]
[1748494904852,5.6067,2727.2,2726.7,3.66732352]
[1748494905325,5.6057,2727.2,2726.7,3.66732352]
[1748494905523,5.6057,2727.2,2726.6,11.66750963]
[1748494905752,9.27247464,2727.2,2726.6,11.66750963]
[1748494905955,1.2027,2727.5,2726.8,8.0]
[1748494906108,1.2027,2727.5,2726.7,9.3019]
[1748494906310,5.6047,2727.5,2727.1,3.66678006]
[1748494906950,1.2027,2727.5,2727.1,3.66678006]
[1748494907150,5.40622457,2728.6,2727.4,3.6664109]
[1748494907151,1.2027,2727.7,2727.4,3.6664109]
[1748494908129,1.2027,2728.0,2727.4,3.6664109]
[1748494908359,4.4,2727.9,2727.4,3.6664109]
[1748494908712,8.06583905,2727.9,2727.3,4.96849225]
[1748494908917,4.398,2727.9,2727.3,12.96849225]
[1748494909148,4.398,2727.9,2727.4,3.66647574]
[1748494909458,4.20573376,2728.5,2727.4,8.0]
[1748494909459,3.66529895,2728.3,2727.4,8.0]
[1748494909624,3.6654137,2728.3,2727.4,8.0]
[1748494909818,3.66531221,2728.3,2727.7,8.0]
[1748494910019,4.86740549,2728.4,2727.7,1.53325609]
[1748494910261,4.397,2728.3,2727.7,3.66599421]
[1748494910443,8.06241355,2728.3,2727.7,3.66609231]
[1748494910643,8.06241355,2728.3,2727.6,3.66614083]
[1748494910644,3.66543158,2728.2,2727.6,3.66614083]
[1748494910957,8.06229448,2728.3,2727.7,3.66599414]
[1748494911114,4.396,2728.2,2727.9,8.0]
[1748494911454,4.86739609,2728.4,2727.9,8.0]
[1748494911455,4.86740802,2728.4,2727.9,8.0]
[1748494911661,4.86740802,2728.4,2727.7,0.36659941]
[1748494911662,4.396,2728.2,2727.7,0.36659941]
[1748494911955,8.06144057,2728.2,2727.7,0.36659941]
[1748494913983,4.9202603,2728.0,2727.6,8.0]
[1748494914186,4.9202603,2728.0,2726.9,5.4597131]
[1748494914187,3.66648205,2727.5,2726.9,3.6671658]
[1748494914387,3.66648205,2727.5,2726.7,2.6651]
[1748494914388,1.2545,2727.3,2726.8,3.6671819]
[1748494914586,5.6465,2727.3,2726.9,8.0]
[1748494914894,0.03674991,2727.7,2726.9,8.0]
[1748494914895,1.2342,2727.5,2727.1,11.66678748]
[1748494915049,5.6252,2727.5,2727.0,3.66700287]
[1748494915251,5.6252,2727.5,2727.2,3.66666647]
[1748494915651,4.391,2727.6,2727.4,3.6664048]
[1748494915845,4.391,2727.6,2726.9,4.95073946]
[1748494915846,4.391,2727.6,2726.9,1.2836]
[1748494916171,4.391,2727.6,2727.3,8.0]
[1748494916981,4.391,2727.6,2727.3,11.66655572]
[1748494917286,4.391,2727.6,2727.4,3.66642417]
[1748494917486,4.391,2727.6,2727.5,3.66636113]
[1748494917855,4.391,2727.6,2727.4,3.6664329]
[1748494918277,4.391,2727.6,2727.3,3.66657076]
[1748494918589,4.391,2727.6,2727.3,8.0]
[1748494918786,1.1909,2727.8,2727.4,3.66637524]
[1748494918994,4.387,2727.7,2727.6,3.66613998]
[1748494920156,4.02518231,2728.4,2727.3,9.16666832]
[1748494920157,1.1689,2728.1,2727.3,9.16666832]
[1748494920369,1.1689,2728.1,2727.8,3.66587469]
[1748494920370,4.386,2728.0,2727.8,3.66587469]
[1748494920566,1.1689,2728.1,2727.8,3.66587469]
[1748494920859,1.289,2728.3,2728.1,3.66547587]
[1748494921058,1.289,2728.3,2727.8,0.73320005]
[1748494921059,1.289,2728.3,2728.0,3.66568049]
[1748494921260,9.33933011,2728.3,2727.8,4.3991293]
[1748494921595,5.674,2728.3,2728.1,3.66554293]
[1748494921920,1.1962,2728.6,2728.1,8.0]
[1748494922081,0.36,2728.8,2727.9,1.2246]
[1748494922268,1.1962,2728.9,2728.1,3.66546032]
[1748494922269,8.04881448,2728.7,2728.1,3.66546032]
[1748494922466,8.04881448,2728.7,2728.0,8.0]
[1748494922467,4.384,2728.7,2728.2,3.66540286]
[1748494922667,4.384,2728.7,2728.4,3.66513759]
[1748494922863,4.383,2728.7,2728.5,3.66501174]
[1748494923066,1.1962,2728.9,2727.9,4.89039265]
[1748494923067,1.1962,2728.9,2728.6,3.66487764]
[1748494923523,5.5792,2728.9,2728.7,3.66462771]
[1748494923724,4.383,2728.9,2728.7,3.66462771]
[1748494924011,4.383,2728.9,2728.6,11.66482991]
[1748494924184,4.383,2728.9,2728.6,13.32340175]
[1748494924506,4.381,2728.9,2728.6,1.65857184]
[1748494924666,4.381,2728.9,2728.3,3.66526169]
[1748494924667,4.381,2728.9,2728.3,3.66528364]
[1748494924871,4.381,2728.9,2728.4,8.0]
[1748494925274,4.381,2728.9,2728.4,3.66513763]
[1748494925479,4.93053708,2729.1,2728.1,3.66555478]
[1748494925690,1.2663,2729.1,2728.2,11.665392]
[1748494925911,1.2663,2729.1,2728.8,3.66448753]
[1748494926075,1.2663,2729.1,2728.7,3.66474878]
[1748494926271,1.2663,2729.1,2728.7,8.0]
[1748494926795,1.2663,2729.1,2728.8,3.66456877]
[1748494927022,3.66455215,2728.9,2728.3,9.1665392]
[1748494927172,3.66455215,2728.9,2728.4,0.91665392]
[1748494928124,3.70111677,2729.0,2728.4,0.91665392]
[1748494928486,0.03674991,2729.0,2728.5,8.0]
[1748494928812,3.66464526,2728.8,2728.4,0.91665392]
[1748494929126,5.5756,2728.7,2728.4,3.66513841]
[1748494929487,5.5756,2728.7,2728.2,3.66541224]
[1748494929714,5.5756,2728.7,2728.4,8.0]
[1748494930338,1.1996,2728.7,2728.4,3.66511126]
[1748494930668,1.1996,2728.7,2728.4,8.0]
[1748494930790,3.6644297,2729.0,2728.4,8.0]
[1748494931122,4.374,2728.9,2728.5,8.0]
[1748494931288,4.374,2728.8,2728.5,3.66495613]
[1748494931490,1.2942,2729.1,2728.1,3.71553123]
[1748494931689,8.03834926,2729.0,2728.4,3.66506991]
[1748494931921,8.03834926,2729.0,2728.5,8.0]
[1748494932125,4.374,2729.0,2728.1,1.61206619]
[1748494932339,4.95850059,2729.1,2728.5,3.66489223]
[1748494932639,8.03737526,2729.0,2728.5,8.0]
[1748494932848,4.373,2729.0,2728.5,11.66492928]
[1748494932990,8.03736171,2729.0,2728.5,8.0]
[1748494934268,8.03736171,2729.0,2728.1,1.61206619]
[1748494934579,2.15645829,2729.1,2728.6,8.0]
[1748494934734,4.371,2729.0,2728.6,8.0]
[1748494935219,8.03534602,2729.0,2728.5,8.0]
[1748494935419,8.0354215,2729.0,2728.4,8.0]
[1748494935716,8.0354215,2729.0,2728.5,3.66493349]
[1748494935717,4.371,2729.0,2728.5,3.66493349]
[1748494935915,4.371,2729.0,2728.6,8.0]
[1748494936119,8.03541903,2729.0,2728.5,8.0]
[1748494936357,8.03541903,2729.0,2728.5,11.66500882]
[1748494936660,4.371,2729.0,2728.5,11.66500882]
[1748494936831,4.371,2729.0,2728.5,11.66499629]
[1748494937455,8.0354151,2729.0,2728.5,8.0]
[1748494937663,8.03547609,2729.0,2728.5,8.0]
[1748494938030,8.03541851,2729.0,2728.5,11.66500748]
[1748494938224,4.371,2729.0,2728.5,8.0]
[1748494938659,8.03534941,2729.0,2728.5,11.66500478]
[1748494938861,4.371,2729.0,2728.6,3.66484916]
[1748494939034,1.2942,2729.1,2728.6,3.66484916]
[1748494939237,1.2942,2729.1,2728.7,3.66472232]
[1748494939476,0.36,2729.6,2728.5,11.6649994]
[1748494939477,1.2248,2729.5,2728.9,3.66443339]
[1748494939658,4.88852074,2729.5,2729.0,8.0]
[1748494939841,4.365,2729.4,2728.9,8.0]
[1748494940024,4.365,2729.4,2728.9,3.66438425]
[1748494940224,8.02881541,2729.4,2728.9,3.66438425]
[1748494940440,4.365,2729.4,2728.9,3.66438425]
[1748494940838,1.1698,2729.3,2728.2,3.01471378]
[1748494941042,5.65671062,2729.4,2728.1,3.71545362]
[1748494941043,1.1698,2729.0,2728.1,3.71545362]
[1748494941280,3.66481509,2728.7,2728.1,11.71545362]
[1748494941455,3.66481509,2728.7,2728.2,8.0]
[1748494941656,3.66481509,2728.7,2728.1,0.05]